fUSD/lending_fUSD_20250614
["ID","MTS","AMOUNT","RATE_DAILY","PERIOD"]
[365798884,1749919838957,-1198.0,0.00016995,2]
[365798887,1749919838971,-151.0,0.00016995,2]
[365798890,1749919838986,-151.0,0.00016995,2]
[365798892,1749919839000,-1198.0,0.00016995,2]
[365798895,1749919839014,-151.0,0.00016995,2]
[365798897,1749919839029,-1198.0,0.00016995,2]
[365798900,1749919839043,-1198.0,0.00016995,2]
[365798902,1749919839058,-151.0,0.00016995,2]
[365798905,1749919839072,-154.0,0.00016995,2]
[365798907,1749919839086,-173.72264198,0.00016995,2]
[365798910,1749919839101,-154.0,0.00016995,2]
[365798913,1749919839115,-1198.0,0.00016995,2]
[365798915,1749919839130,-154.0,0.00016995,2]
[365798918,1749919839144,-1198.0,0.00016995,2]
[365798920,1749919839159,-154.0,0.00016995,2]
[365798923,1749919839173,-1198.0,0.00016995,2]
[365798926,1749919839187,-1198.0,0.00016995,2]
[365798928,1749919839201,-154.0,0.00016995,2]
[365798931,1749919839215,-1198.0,0.00016995,2]
[365798933,1749919839230,-154.0,0.00016995,2]
[365798936,1749919839244,-1198.0,0.00016995,2]
[365798938,1749919839258,-154.0,0.00016995,2]
[365798941,1749919839273,-1198.0,0.00016995,2]
[365798942,1749919839287,-154.0,0.00016995,2]
[365798945,1749919839301,-1198.0,0.00016995,2]
[365798948,1749919839316,-1198.0,0.00016995,2]
[365798951,1749919839340,-154.0,0.00016995,2]
[365798954,1749919839360,-1198.0,0.00016995,2]
[365798958,1749919839381,-294.81199835,0.00016995,2]
[365798961,1749919839398,-1198.0,0.00016995,2]
[365798964,1749919839418,-154.0,0.00016995,2]
[365798967,1749919839437,-1198.0,0.00016995,2]
[365798970,1749919839453,-154.0,0.00016995,2]
[365798973,1749919839474,-154.0,0.00016995,2]
[365798975,1749919839490,-1198.0,0.00016995,2]
[365798978,1749919839507,-154.0,0.00016995,2]
[365798981,1749919839523,-1198.0,0.00016995,2]
[365798984,1749919839540,-154.0,0.00016995,2]
[365798986,1749919839555,-1198.0,0.00016995,2]
[365798989,1749919839571,-154.0,0.00016995,2]
[365798992,1749919839586,-1198.0,0.00016995,2]
[365798993,1749919839601,-154.0,0.00016995,2]
[365798994,1749919839617,-1198.0,0.00016995,2]
[365798995,1749919839633,-154.0,0.00016995,2]
[365798996,1749919839649,-154.0,0.00016995,2]
[365798997,1749919839663,-1198.0,0.00016995,2]
[365798998,1749919839679,-154.0,0.00016995,2]
[365798999,1749919839693,-1198.0,0.00016995,2]
[365799000,1749919839706,-1198.0,0.00016995,2]
[365799001,1749919839720,-1198.0,0.00016995,2]
[365799002,1749919839734,-1198.0,0.00016995,2]
[365799003,1749919839748,-1319.58044075,0.00016995,2]
[365799004,1749919839762,-1198.0,0.00016995,2]
[365799005,1749919839777,-945.0,0.00016999,2]
[365799006,1749919839793,-2787.94441181,0.00016999,2]
[365799008,1749919839812,-741.18258819,0.00016999,2]
[365799010,1749919839826,-1270.85035081,0.00016999,2]
[365799096,1749919840651,-270.08567794,0.00016999,2]
[365799098,1749919840665,-1439.99999995,0.00016999,2]
[365799693,1749919846337,-233.81559417,0.00016899,2]
[365799694,1749919846346,-10406.56960587,0.00016999,2]
[365799695,1749919846360,-3555.91418188,0.00016999,2]
[365799696,1749919846371,-1881.704825,0.00016999,2]
[365799698,1749919846416,-328.01869988,0.00016999,2]
[365799700,1749919846428,-303.70319428,0.00016999,2]
[365799712,1749919846528,-387.57499988,0.00016999,2]
[365799718,1749919846585,-872.50684033,0.00016999,2]
[365800072,1749919946182,954.18,0.00015993,2]
[365800073,1749919961622,200.0,0.00015085,2]
[365800074,1749919973897,168.0,0.00014499,2]
[365800075,1749919976075,168.0,0.0001465,2]
[365800076,1749919991652,168.0,0.00014575,2]
[365800077,1749919993837,168.0,0.00014948,2]
[365800078,1749920006694,500.0,0.00024999,120]
[365800079,1749920046946,154.93,0.00015975,2]
[365800080,1749920047169,154.93,0.00015981,2]
[365800081,1749920047372,154.93,0.00015986,2]
[365800082,1749920047580,154.93,0.00015991,2]
[365800083,1749920047790,154.93,0.00015997,2]
[365800084,1749920065876,1634.09,0.0001382,2]
[365800085,1749920087685,397.93,0.00013699,2]
[365800087,1749920175332,666.0,0.00015703,2]
[365800088,1749920354104,150.0,0.00015668,7]
[365800089,1749920400499,154.59,0.00015683,2]
[365800090,1749920415341,201.0,0.00015017,2]
[365800091,1749920415613,201.0,0.00015517,2]
[365800092,1749920453535,202.0,0.00015017,2]
[365800093,1749920456537,166.27,0.00015723,2]
[365800094,1749920488196,23900.0,0.00015719,2]
[365800095,1749920494530,2751.0,0.00015692,2]
[365800098,1749920771926,201.0,0.00015016,2]
[365800099,1749920772195,201.0,0.00015522,2]
[365800101,1749920804139,250.0,0.00015692,2]
[365800104,1749920831748,202.0,0.00015016,2]
[365800125,1749921031791,-154.93,0.00016002,2]
[365800126,1749921031802,-250.0,0.00016002,2]
[365800127,1749921031812,-8.125,0.00016003,2]
[365800132,1749921031929,-291.875,0.00016003,2]
[365800134,1749921031938,-600.0,0.00016004,4]
[365800135,1749921031947,-154.93,0.00016007,2]
[365800137,1749921031957,-300.0,0.00016007,2]
[365800139,1749921031966,-600.0,0.00016011,4]
[365800140,1749921031976,-154.93,0.00016012,2]
[365800142,1749921031985,-154.93,0.00016018,2]
[365800144,1749921031994,-154.93,0.00016023,2]
[365800146,1749921032004,-201.0,0.00016027,3]
[365800148,1749921032019,-154.93,0.00016028,2]
[365800149,1749921032028,-154.93,0.00016034,2]
[365800150,1749921032037,-154.93,0.00016039,2]
[365800152,1749921032048,-154.93,0.00016044,2]
[365800154,1749921032059,-154.93,0.0001605,2]
[365800156,1749921032068,-154.93,0.00016055,2]
[365800158,1749921032078,-1000.0,0.00016056,2]
[365800159,1749921032088,-1634.09,0.00016084,2]
[365800161,1749921032098,-300.0,0.00016134,2]
[365800162,1749921032108,-1200.0,0.00016135,2]
[365800163,1749921032117,-1957.856,0.00016136,2]
[365800164,1749921032127,-207.4,0.00016136,2]
[365800165,1749921032138,-151.0,0.00016153,2]
[365800166,1749921032147,-151.0,0.00016153,2]
[365800167,1749921032157,-1000.0,0.00016153,2]
[365800168,1749921032167,-1000.0,0.00016153,2]
[365800169,1749921032178,-346.09412057,0.00016153,2]
[365800170,1749921032188,-1200.0,0.00016153,2]
[365800171,1749921032198,-1200.0,0.00016153,2]
[365800172,1749921032208,-1200.0,0.00016153,2]
[365800173,1749921032219,-1200.0,0.00016153,2]
[365800174,1749921032229,-339.47730379,0.00016153,2]
[365800175,1749921032238,-500.0,0.00016153,2]
[365800176,1749921032248,-500.0,0.00016153,2]
[365800177,1749921032259,-152.28733971,0.00016153,2]
[365800178,1749921032269,-500.0,0.00016153,2]
[365800179,1749921032278,-429.41684888,0.00016153,2]
[365800180,1749921032311,-70.58315112,0.00016153,2]
[365800181,1749921032321,-487.43766573,0.00016153,2]
[365800182,1749921032334,-12.56233427,0.00016153,2]
[365800183,1749921032343,-500.0,0.00016153,2]
[365800184,1749921032354,-500.0,0.00016153,2]
[365800185,1749921032364,-500.0,0.00016153,2]
[365800186,1749921032374,-500.0,0.00016153,2]
[365800187,1749921032384,-500.0,0.00016153,2]
[365800188,1749921032393,-500.0,0.00016153,2]
[365800189,1749921032402,-500.0,0.00016153,2]
[365800190,1749921032411,-500.0,0.00016153,2]
[365800191,1749921032421,-500.0,0.00016153,2]
[365800192,1749921032430,-151.0,0.00016153,2]
[365800193,1749921032440,-500.0,0.00016153,2]
[365800194,1749921032449,-151.0,0.00016153,2]
[365800195,1749921032459,-151.0,0.00016153,2]
[365800196,1749921032468,-151.0,0.00016153,2]
[365800197,1749921032478,-733.70359521,0.00016154,2]
[365800198,1749921032488,-500.0,0.00016165,2]
[365800199,1749921032498,-500.0,0.00016165,2]
[365800200,1749921032507,-500.0,0.00016165,2]
[365800201,1749921032517,-2030.296672,0.00016191,2]
[365800202,1749921032527,-2105.41764886,0.00016246,2]
[365800203,1749921032537,-500.0,0.00016274,2]
[365800204,1749921032547,-2183.31810187,0.00016301,2]
[365800205,1749921032556,-2264.10087164,0.00016356,2]
[365800206,1749921032567,-163.42,0.000164,2]
[365800207,1749921032576,-300.0,0.000164,5]
[365800208,1749921032586,-163.16,0.000164,2]
[365800209,1749921032596,-326.55,0.000164,2]
[365800210,1749921032606,-1954.60913885,0.00016411,2]
[365800211,1749921032615,-600.0,0.000165,6]
[365800212,1749921032626,-201.0,0.00016533,3]
[365800213,1749921032636,-900.0,0.000166,6]
[365800214,1749921032646,-168.0,0.00016627,2]
[365800215,1749921032655,-166.71,0.00016682,2]
[365800216,1749921032665,-1200.0,0.000167,6]
[365800217,1749921032675,-150.0,0.00016752,2]
[365800218,1749921032684,-150.0,0.00016753,2]
[365800219,1749921032693,-150.0,0.00016759,2]
[365800220,1749921032703,-150.0,0.00016763,2]
[365800221,1749921032712,-150.0,0.00016788,2]
[365800222,1749921032722,-150.0,0.00016789,2]
[365800223,1749921032731,-150.0,0.00016797,2]
[365800224,1749921032741,-547.84,0.000168,2]
[365800225,1749921032750,-1224.26574438,0.000168,6]
[365800226,1749921032785,-275.73425562,0.000168,6]
[365800227,1749921032794,-168.00729023,0.00016826,2]
[365800228,1749921032806,-927.39070977,0.00016826,2]
[365800229,1749921032816,-150.0,0.00016833,2]
[365800230,1749921032825,-150.0,0.00016842,2]
[365800231,1749921032835,-150.0,0.00016847,2]
[365800232,1749921032845,-2000.0,0.00016863,2]
[365800233,1749921032854,-155.0,0.00016872,2]
[365800234,1749921032864,-4089.0,0.00016872,2]
[365800235,1749921032874,-150.0,0.00016874,2]
[365800236,1749921032883,-150.0,0.00016874,2]
[365800237,1749921032892,-1000.0,0.00016882,2]
[365800238,1749921032902,-150.0,0.00016883,2]
[365800239,1749921032911,-1063.9374496,0.00016889,2]
[365800240,1749921032920,-150.0,0.0001689,2]
[365800241,1749921032930,-150.0,0.00016891,2]
[365800242,1749921032939,-259.28163672,0.00016896,2]
[365800243,1749921032948,-167.01113871,0.00016896,2]
[365800244,1749921032958,-253.23611313,0.00016896,2]
[365800245,1749921032967,-484.3333467,0.00016896,2]
[365800246,1749921032977,-150.322115,0.00016896,2]
[365800247,1749921032986,-167.01113869,0.00016897,2]
[365800248,1749921032995,-150.32211499,0.00016897,2]
[365800249,1749921033006,-167.01113869,0.00016897,2]
[365800250,1749921033019,-167.01113869,0.00016898,2]
[365800251,1749921033028,-150.32211499,0.00016898,2]
[365800252,1749921033038,-167.01113869,0.00016899,2]
[365800253,1749921033047,-167.01113869,0.00016899,2]
[365800254,1749921033057,-300.0,0.000169,6]
[365800255,1749921033067,-330.88331166,0.000169,2]
[365800256,1749921033077,-167.01113869,0.000169,2]
[365800257,1749921033479,-1000.0,0.000169,2]
[365800258,1749921033523,-1000.0,0.000169,2]
[365800259,1749921033533,-1000.0,0.000169,2]
[365800260,1749921033543,-1014.0,0.000169,2]
[365800261,1749921033553,-1000.0,0.000169,2]
[365800262,1749921033563,-1000.0,0.000169,2]
[365800263,1749921033573,-1000.0,0.000169,2]
[365800264,1749921033584,-1000.0,0.000169,3]
[365800265,1749921033593,-1000.0,0.000169,3]
[365800266,1749921033602,-1000.0,0.000169,2]
[365800267,1749921033612,-1015.0,0.000169,2]
[365800268,1749921033622,-1000.0,0.000169,2]
[365800269,1749921033632,-1000.0,0.000169,2]
[365800270,1749921033641,-1000.0,0.000169,2]
[365800271,1749921033651,-1000.0,0.000169,2]
[365800272,1749921033660,-1000.0,0.000169,2]
[365800273,1749921033669,-153.64068744,0.000169,2]
[365800274,1749921033679,-1224.70080656,0.000169,2]
[365800275,1749921033688,-285.81549674,0.000169,2]
[365800276,1749921033698,-1000.0,0.00016906,2]
[365800277,1749921033708,-150.0,0.00016913,2]
[365800278,1749921033718,-150.0,0.00016918,2]
[365800279,1749921033727,-150.0,0.0001692,2]
[365800280,1749921033737,-4481.34,0.00016922,2]
[365800281,1749921033747,-21001.96,0.00016922,2]
[365800282,1749921033756,-4296.25,0.00016922,2]
[365800283,1749921033765,-13690.18412085,0.00016922,2]
[365800295,1749921037479,-150.32211499,0.00016899,2]
[365800296,1749921037489,-7811.65587915,0.00016922,2]
[365800297,1749921037499,-7341.30379604,0.00016922,2]
[365800298,1749921037511,-4398.37450804,0.00016922,2]
[365800299,1749921037524,-3891.10169592,0.00016922,2]
[365800300,1749921037533,-151.0,0.00016922,2]
[365800301,1749921037543,-151.0,0.00016922,2]
[365800302,1749921037553,-151.0,0.00016922,2]
[365800303,1749921037563,-151.0,0.00016922,2]
[365800304,1749921037573,-150.0,0.00016923,2]
[365800305,1749921037585,-150.0,0.00016932,2]
[365800306,1749921037595,-150.0,0.00016935,2]
[365800307,1749921037605,-150.0,0.00016937,2]
[365800316,1749921037947,-1000.0,0.00016939,2]
[365800320,1749921037980,-724.6368338,0.0001695,2]
[365800322,1749921037990,-150.0,0.00016955,2]
[365800324,1749921038000,-150.0,0.00016955,2]
[365800325,1749921038011,-150.0,0.00016957,2]
[365800327,1749921038024,-659.5914,0.00016959,2]
[365800329,1749921038034,-150.0,0.00016961,2]
[365800331,1749921038044,-157.45921691,0.00016973,2]
[365800333,1749921038056,-500.0,0.00016973,2]
[365800335,1749921038066,-150.0,0.00016974,2]
[365800337,1749921038076,-833.63237626,0.00016974,2]
[365800339,1749921038087,-300.0,0.00016995,2]
[365800341,1749921038096,-300.0,0.00016995,2]
[365800342,1749921038105,-300.0,0.00016995,2]
[365800344,1749921038116,-150.0,0.00016995,2]
[365800347,1749921038126,-15931.02455461,0.00016995,2]
[365800350,1749921038136,-5798.5539225,0.00016995,2]
[365800356,1749921038177,-1004.93733875,0.00016995,2]
[365800360,1749921038206,-18952.38545,0.00016995,2]
[365800362,1749921038265,-1862.09,0.00016995,2]
[365800363,1749921038276,-281.78651295,0.00016995,2]
[365800493,1749921039708,-46805.21448004,0.00016995,2]
[365800495,1749921039721,-3699.979966,0.00016995,2]
[365800500,1749921039765,-22575.58199992,0.00016995,2]
[365800503,1749921039777,-470.493024,0.00016995,2]
[365800512,1749921039974,-586.51844093,0.00016995,2]
[365800514,1749921039985,-7358.67714897,0.00016995,2]
[365800520,1749921040028,-888454.49948407,0.00016995,2]
[365800522,1749921040037,-661.0,0.00016995,2]
[365800524,1749921040048,-15627.2031666,0.00016996,2]
[365800527,1749921040060,-1588.2841901,0.00016996,2]
[365800528,1749921040070,-151.0,0.00016996,2]
[365800530,1749921040079,-151.662733,0.00016996,2]
[365800532,1749921040090,-151.0,0.00016996,2]
[365800534,1749921040099,-151.0,0.00016996,2]
[365800536,1749921040109,-151.0,0.00016996,2]
[365800538,1749921040118,-151.0,0.00016996,2]
[365800540,1749921040133,-3060.7062603,0.00016996,2]
[365800542,1749921040142,-10313.9193556,0.00016996,2]
[365800544,1749921040152,-151.0,0.00016996,2]
[365800546,1749921040162,-151.0,0.00016996,2]
[365800548,1749921040172,-151.0,0.00016996,2]
[365800550,1749921040182,-151.0,0.00016996,2]
[365800552,1749921040192,-151.0,0.00016996,2]
[365800554,1749921040201,-152.203864,0.00016996,2]
[365800556,1749921040211,-3822.000706,0.00016996,2]
[365800558,1749921040221,-3822.000706,0.00016996,2]
[365800560,1749921040230,-5823.2639776,0.00016996,2]
[365800562,1749921040240,-3822.000706,0.00016996,2]
[365800564,1749921040250,-3822.000706,0.00016996,2]
[365800566,1749921040259,-153.050454,0.00016996,2]
[365800568,1749921040269,-153.050454,0.00016996,2]
[365800571,1749921040279,-151.546108,0.00016996,2]
[365800573,1749921040289,-151.0,0.00016996,2]
[365800575,1749921040298,-151.0,0.00016996,2]
[365800577,1749921040308,-153.050454,0.00016996,2]
[365800579,1749921040318,-153.050454,0.00016996,2]
[365800581,1749921040328,-835.747617,0.00016996,2]
[365800582,1749921040342,-835.747617,0.00016996,2]
[365800584,1749921040351,-151.0,0.00016996,2]
[365800586,1749921040361,-151.0,0.00016996,2]
[365800588,1749921040371,-151.0,0.00016996,2]
[365800590,1749921040380,-835.747617,0.00016996,2]
[365800592,1749921040390,-835.747617,0.00016996,2]
[365800594,1749921040399,-1053.0099957,0.00016996,2]
[365800596,1749921040409,-151.0,0.00016996,2]
[365800598,1749921040419,-172.846796,0.00016996,2]
[365800601,1749921040429,-151.0,0.00016996,2]
[365800603,1749921040439,-151.0,0.00016996,2]
[365800605,1749921040450,-151.0,0.00016996,2]
[365800606,1749921040460,-151.0,0.00016996,2]
[365800609,1749921040481,-151.0,0.00016996,2]
[365800611,1749921040492,-151.0,0.00016996,2]
[365800613,1749921040502,-151.0,0.00016996,2]
[365800615,1749921040512,-151.0,0.00016996,2]
[365800617,1749921040523,-151.0,0.00016996,2]
[365800619,1749921040533,-151.0,0.00016996,2]
[365800620,1749921040544,-151.0,0.00016996,2]
[365800622,1749921040554,-151.0,0.00016996,2]
[365800624,1749921040566,-151.0,0.00016996,2]
[365800626,1749921040577,-150.0,0.00016999,2]
[365800629,1749921040591,-150.0,0.00016999,2]
[365800631,1749921040602,-1000.0,0.00016999,2]
[365800633,1749921040612,-1000.0,0.00016999,2]
[365800635,1749921040624,-339.16430366,0.00016999,2]
[365800637,1749921040634,-1000.0,0.00016999,2]
[365800639,1749921040644,-1000.0,0.00016999,2]
[365800641,1749921040654,-1000.0,0.00016999,2]
[365800643,1749921040664,-1000.0,0.00016999,2]
[365800645,1749921040674,-1000.0,0.00016999,2]
[365800647,1749921040684,-150.0,0.00016999,2]
[365800649,1749921040694,-150.0,0.00016999,2]
[365800651,1749921040704,-211.92372185,0.00016999,2]
[365800653,1749921040715,-150.0,0.00016999,2]
[365800655,1749921040725,-151.86779167,0.00016999,2]
[365800658,1749921040735,-150.0,0.00016999,2]
[365800660,1749921040745,-171.24908528,0.00016999,2]
[365800662,1749921040755,-150.0,0.00016999,2]
[365800664,1749921040766,-289.39346988,0.00016999,2]
[365800666,1749921040777,-1000.0,0.00016999,2]
[365800668,1749921040788,-151.0,0.00016999,2]
[365800670,1749921040798,-151.0,0.00016999,2]
[365800672,1749921040808,-205.270521,0.00016999,2]
[365800674,1749921040818,-151.0,0.00016999,2]
[365800676,1749921040828,-150.0,0.00016999,2]
[365800678,1749921040839,-150.0,0.00016999,2]
[365800680,1749921040848,-150.0,0.00016999,2]
[365800682,1749921040858,-500.0,0.00016999,2]
[365800684,1749921040869,-150.0,0.00016999,2]
[365800686,1749921040879,-150.0,0.00016999,2]
[365800688,1749921040888,-150.0,0.00016999,2]
[365800690,1749921040898,-150.0,0.00016999,2]
[365800692,1749921040907,-151.0,0.00016999,2]
[365800694,1749921040917,-151.0,0.00016999,2]
[365800696,1749921040927,-328.85313476,0.00016999,2]
[365800698,1749921040938,-169.23287799,0.00016999,2]
[365800700,1749921040948,-161.95,0.00016999,2]
[365800702,1749921040958,-3822.000706,0.00016999,2]
[365800705,1749921040969,-3822.000706,0.00016999,2]
[365800707,1749921040979,-153.050454,0.00016999,2]
[365800709,1749921040989,-151.0,0.00016999,2]
[365800711,1749921040998,-153.050454,0.00016999,2]
[365800713,1749921041009,-835.747617,0.00016999,2]
[365800715,1749921041019,-151.0,0.00016999,2]
[365800716,1749921041029,-151.0,0.00016999,2]
[365800719,1749921041039,-835.747617,0.00016999,2]
[365800721,1749921041050,-500.0,0.00016999,2]
[365800723,1749921041061,-150.0,0.00016999,2]
[365800725,1749921041070,-150.0,0.00016999,2]
[365800727,1749921041080,-500.0,0.00016999,2]
[365800729,1749921041091,-150.0,0.00016999,2]
[365800731,1749921041102,-500.0,0.00016999,2]
[365800733,1749921041111,-151.0,0.00016999,2]
[365800735,1749921041122,-152.352702,0.00016999,2]
[365800737,1749921041131,-232.920801,0.00016999,2]
[365800740,1749921041156,-150.0,0.00016999,2]
[365800742,1749921041171,-150.0,0.00016999,2]
[365800745,1749921041182,-200.0,0.00016999,2]
[365800747,1749921041192,-500.0,0.00016999,2]
[365800749,1749921041201,-150.0,0.00016999,2]
[365800751,1749921041211,-258.19605247,0.00016999,2]
[365800753,1749921041222,-150.0,0.00016999,2]
[365800755,1749921041232,-151.0,0.00016999,2]
[365800757,1749921041242,-151.0,0.00016999,2]
[365800759,1749921041251,-151.0,0.00016999,2]
[365800761,1749921041261,-1000.0,0.00016999,2]
[365800763,1749921041271,-151.0,0.00016999,2]
[365800765,1749921041281,-294.805959,0.00016999,2]
[365800767,1749921041291,-151.0,0.00016999,2]
[365800769,1749921041301,-500.0,0.00016999,2]
[365800771,1749921041311,-210.46603512,0.00016999,2]
[365800773,1749921041322,-418.90725043,0.00016999,2]
[365800775,1749921041331,-500.0,0.00016999,2]
[365800777,1749921041341,-500.0,0.00016999,2]
[365800779,1749921041350,-450.91925421,0.00016999,2]
[365800781,1749921041360,-500.0,0.00016999,2]
[365800783,1749921041370,-212.1818294,0.00016999,2]
[365800785,1749921041380,-592.07612573,0.00016999,2]
[365800787,1749921041390,-500.0,0.00016999,2]
[365800789,1749921041400,-500.0,0.00016999,2]
[365800791,1749921041409,-500.0,0.00016999,2]
[365800793,1749921041419,-500.0,0.00016999,2]
[365800795,1749921041429,-500.0,0.00016999,2]
[365800797,1749921041439,-514.39503844,0.00016999,2]
[365800799,1749921041450,-460.66255934,0.00016999,2]
[365800801,1749921041460,-500.0,0.00016999,2]
[365800803,1749921041471,-500.0,0.00016999,2]
[365800805,1749921041482,-500.0,0.00016999,2]
[365800807,1749921041492,-500.0,0.00016999,2]
[365800810,1749921041502,-264.52023261,0.00016999,2]
[365800812,1749921041514,-500.0,0.00016999,2]
[365800814,1749921041523,-399.53118607,0.00016999,2]
[365800816,1749921041534,-347.50017045,0.00016999,2]
[365800818,1749921041544,-180.78932232,0.00016999,2]
[365800820,1749921041554,-500.0,0.00016999,2]
[365800822,1749921041564,-500.0,0.00016999,2]
[365800824,1749921041574,-500.0,0.00016999,2]
[365800826,1749921041585,-500.0,0.00016999,2]
[365800828,1749921041595,-500.0,0.00016999,2]
[365800830,1749921041604,-500.0,0.00016999,2]
[365800832,1749921041615,-500.0,0.00016999,2]
[365800834,1749921041625,-500.0,0.00016999,2]
[365800836,1749921041634,-500.0,0.00016999,2]
[365800838,1749921041644,-500.0,0.00016999,2]
[365800840,1749921041654,-500.0,0.00016999,2]
[365800842,1749921041663,-500.0,0.00016999,2]
[365800844,1749921041673,-150.0,0.00016999,2]
[365800846,1749921041684,-150.0,0.00016999,2]
[365800848,1749921041693,-3877.5,0.00017,2]
[365800850,1749921041703,-3877.5,0.00017,2]
[365800852,1749921041713,-3392.15,0.00017,2]
[365800854,1749921041723,-3392.15,0.00017,2]
[365800856,1749921041734,-1453.93,0.00017,2]
[365800858,1749921041744,-1453.93,0.00017,2]
[365800860,1749921041754,-290.79,0.00017,2]
[365800862,1749921041764,-290.79,0.00017,2]
[365800864,1749921041774,-114987.65947288,0.00017,2]
[365800949,1749921042721,-150.32211499,0.000169,2]
[365800951,1749921042732,-1718.93797354,0.00017,2]
[365800954,1749921042743,-1763.2001,0.00017,2]
[365800973,1749921042968,-10766.51660787,0.00017,2]
[365801326,1749921046213,-1591.52243779,0.00017,2]
[365801330,1749921046242,-349.54999941,0.00017,2]
[365801332,1749921046253,-897.30580963,0.00017,2]
[365801339,1749921046310,-12896.28750565,0.00017,2]
[365801343,1749921046335,-530.15000346,0.00017,2]
[365801668,1749921071767,201.0,0.00015016,2]
[365801669,1749921134639,666.0,0.00015974,2]
[365801670,1749921169678,410.58,0.00013699,2]
[365801672,1749921204412,168.0,0.00015952,2]
[365801673,1749921207724,168.0,0.0001563,2]
[365801674,1749921207756,1000.0,0.00015642,2]
[365801675,1749921221572,685.34,0.0001592,2]
[365801676,1749921299480,8999.999999,0.0001,2]
[365801677,1749921346721,1595.19,0.00013985,2]
[365801680,1749921366618,150.0,0.00015887,7]
[365801681,1749921400703,1666.91,0.00015889,2]
[365801682,1749921491102,23900.0,0.00015908,2]
[365801683,1749921492093,201.0,0.00015038,2]
[365801684,1749921492610,201.0,0.00015549,2]
[365801685,1749921517718,1852.42,0.00015882,2]
[365801686,1749921521427,202.0,0.00015038,2]
[365801687,1749921561200,159.03,0.0001586,2]
[365801688,1749921623096,1965.32983432,0.00025,120]
[365801689,1749921837580,200.0,0.00015801,2]
[365801690,1749921851905,201.0,0.0001506,2]
[365801691,1749921852196,201.0,0.00015577,2]
[365801692,1749921881776,202.0,0.0001506,2]
[365801693,1749921892391,208.58,0.00015792,2]
[365801694,1749921907279,250.0,0.00015776,2]
[365801704,1749922047366,169.3,0.0001579,2]
[365801705,1749922097631,150.0,0.0001574,2]
[365801736,1749922186897,888.57,0.0001576,2]
[365801741,1749922211978,201.0,0.00015093,2]
[365801742,1749922212243,201.0,0.00015621,2]
[365801773,1749922231775,-300.0,0.00016094,2]
[365801775,1749922231784,-250.0,0.00016094,2]
[365801777,1749922231794,-300.0,0.00016094,2]
[365801778,1749922231804,-249.93,0.00016094,2]
[365801779,1749922231813,-245.14,0.00016094,2]
[365801780,1749922231823,-1000.0,0.000161,2]
[365801781,1749922231834,-247.63,0.00016108,2]
[365801782,1749922231844,-300.0,0.00016112,2]
[365801783,1749922231853,-201.0,0.0001615,3]
[365801784,1749922231862,-1200.0,0.00016164,2]
[365801785,1749922231871,-500.0,0.00016165,2]
[365801786,1749922231881,-500.0,0.00016165,2]
[365801787,1749922231891,-500.0,0.00016165,2]
[365801788,1749922231900,-152.0,0.00016172,3]
[365801789,1749922231910,-1000.0,0.000162,2]